bitfinex/quotes_ETHUSD_20250517
["timestamp","ask_amount","ask_price","bid_price","bid_amount"]
[1747493225786,4.0316078,2480.4,2480.1,0.55]
[1747493226388,4.03178533,2480.3,2480.1,0.55]
[1747493227509,4.03171267,2480.4,2480.1,0.55]
[1747493227802,4.03112024,2480.7,2480.3,0.55]
[1747493228111,4.03141484,2480.6,2480.3,0.55]
[1747493228273,4.03145489,2480.5,2480.3,0.55]
[1747493228805,4.03112024,2480.7,2480.3,0.774107]
[1747493229163,10.08,2480.8,2480.3,0.774107]
[1747493229164,4.03129277,2480.6,2480.3,0.774107]
[1747493229876,4.03128275,2480.6,2480.3,0.774107]
[1747493231810,10.08,2480.8,2480.3,4.80576364]
[1747493231999,11.78677657,2481.0,2480.5,0.55]
[1747493232173,4.03083663,2480.9,2480.6,7.758]
[1747493232693,11.78677657,2481.0,2480.6,7.758]
[1747493232694,4.03096578,2480.8,2480.6,7.758]
[1747493232890,4.03110693,2480.8,2480.6,7.758]
[1747493233093,4.03110954,2480.8,2480.6,7.758]
[1747493233469,22.69271587,2481.2,2480.6,7.758]
[1747493233668,22.69271587,2481.2,2480.5,0.55]
[1747493233669,4.03095775,2480.8,2480.7,7.758]
[1747493233865,4.03095775,2480.8,2480.5,0.55]
[1747493233866,0.8122,2481.1,2479.7,21.44466713]
[1747493234067,4.0322187,2480.1,2480.0,0.7899]
[1747493234307,4.0322187,2480.1,2479.9,7.758]
[1747493234716,10.08,2480.5,2480.1,0.55]
[1747493234918,4.03168687,2480.4,2480.1,0.55]
[1747493235570,14.11147918,2480.5,2480.1,0.55]
[1747493235770,10.08,2480.5,2480.3,0.55]
[1747493235976,10.08,2480.5,2480.4,8.308]
[1747493236284,4.03079527,2480.9,2480.5,0.55]
[1747493236484,4.03110117,2480.8,2480.5,0.55]
[1747493236712,4.03122702,2480.7,2480.5,0.55]
[1747493237306,4.03122702,2480.7,2480.6,0.7899]
[1747493237613,4.03042478,2481.2,2480.7,4.58109648]
[1747493237912,4.03047862,2481.1,2480.7,0.55]
[1747493238416,10.8922,2481.5,2480.7,0.55]
[1747493238710,4.03095775,2480.8,2480.7,8.305]
[1747493239215,4.03112024,2480.7,2480.6,17.411]
[1747493239416,4.0319329,2480.2,2480.1,0.7899]
[1747493239613,4.0319329,2480.2,2480.1,7.755]
[1747493240876,4.03183447,2480.3,2480.1,7.755]
[1747493241216,4.03178341,2480.3,2480.1,7.755]
[1747493241859,4.0319329,2480.2,2480.1,7.755]
[1747493243816,0.8122,2480.5,2480.1,7.755]
[1747493243817,4.03183998,2480.3,2480.1,7.755]
[1747493244115,4.0319329,2480.2,2480.1,7.755]
[1747493244501,4.0316078,2480.4,2480.1,7.755]
[1747493244700,4.03150829,2480.5,2480.2,0.7899]
[1747493245103,0.8122,2481.2,2480.3,0.55]
[1747493245289,11.78448281,2481.1,2480.3,0.55]
[1747493245493,4.0306328,2481.0,2480.3,0.55]
[1747493245705,4.0306328,2481.0,2480.5,0.55]
[1747493245706,4.0313894,2480.6,2480.5,0.55]
[1747493246381,10.8922,2481.2,2480.5,0.55]
[1747493246585,4.03116097,2480.7,2480.5,0.55]
[1747493247477,4.03102969,2480.8,2480.5,0.55]
[1747493247783,4.03121889,2480.7,2480.6,0.7899]
[1747493248279,0.8087,2481.6,2480.7,0.55]
[1747493248532,4.03038242,2481.2,2480.7,4.58104089]
[1747493249185,4.03038242,2481.2,2480.9,0.55]
[1747493249382,4.03038242,2481.2,2481.0,7.755]
[1747493250036,4.03047035,2481.1,2481.0,7.755]
[1747493250186,4.03058223,2481.1,2481.0,7.755]
[1747493251232,4.0306328,2481.0,2480.9,0.55]
[1747493251434,4.0306328,2481.0,2480.9,8.304]
[1747493251814,4.03055193,2481.1,2480.9,8.304]
[1747493252027,4.03022017,2481.3,2480.9,8.304]
[1747493252406,4.03031401,2481.2,2480.9,8.304]
[1747493252944,4.0306328,2481.0,2480.9,0.55]
[1747493253116,4.0306328,2481.0,2480.6,18.1999]
[1747493253317,0.828,2481.2,2480.6,18.1999]
[1747493253318,4.03112024,2480.7,2480.6,17.41]
[1747493253636,0.828,2481.2,2480.6,25.164]
[1747493253804,4.85830881,2481.2,2480.6,25.164]
[1747493254017,4.03112024,2480.7,2480.6,25.714]
[1747493254409,4.03112024,2480.7,2480.6,17.96]
[1747493256046,4.03112024,2480.7,2480.6,17.41]
[1747493256220,4.03112024,2480.7,2480.4,7.754]
[1747493256221,4.03144527,2480.5,2480.4,7.754]
[1747493256956,11.78378755,2481.0,2480.5,0.55]
[1747493256957,4.03110848,2480.8,2480.5,0.55]
[1747493257162,4.03110848,2480.8,2480.6,0.7897]
[1747493257524,4.03112024,2480.7,2480.6,0.7897]
[1747493257724,4.03128275,2480.6,2480.4,0.55]
[1747493257924,8.0,2481.4,2480.6,0.55]
[1747493258242,4.03066104,2481.0,2480.8,0.55]
[1747493261027,4.03079527,2480.9,2480.8,0.55]
[1747493262870,12.02999572,2481.4,2480.8,0.55]
[1747493262871,4.03010216,2481.4,2480.8,0.55]
[1747493263184,4.0304365,2481.2,2480.8,0.55]
[1747493263457,4.0295682,2481.7,2481.3,0.8269]
[1747493263631,4.02953623,2481.7,2481.4,8.304]
[1747493263830,8.5222,2482.2,2481.4,8.304]
[1747493263831,4.02968492,2481.6,2481.4,8.304]
[1747493264145,4.02982067,2481.5,2481.4,8.304]
[1747493265255,4.02972829,2481.6,2481.4,8.304]
[1747493265627,4.02974916,2481.6,2481.4,8.304]
[1747493266339,4.02973739,2481.6,2481.4,8.304]
[1747493266660,4.02907729,2482.0,2481.5,0.8269]
[1747493266847,4.0289047,2482.1,2481.5,0.8269]
[1747493267168,4.0289047,2482.1,2481.7,0.55]
[1747493267464,4.02852193,2482.3,2481.7,0.55]
[1747493267653,4.02893838,2482.1,2481.7,0.55]
[1747493267853,4.0290254,2482.0,2481.7,0.55]
[1747493268273,4.02872023,2482.2,2481.6,0.55]
[1747493268840,4.02884654,2482.1,2481.6,2.330699]
[1747493269074,4.02872187,2482.2,2481.8,0.55]
[1747493269276,4.02859678,2482.3,2482.0,0.55]
[1747493269479,4.02876496,2482.2,2482.0,0.55]
[1747493269779,0.7702,2482.9,2482.4,0.55]
[1747493269979,7.766,2483.2,2482.5,7.758]
[1747493270182,4.02774375,2482.8,2482.5,7.758]
[1747493270349,4.79763237,2483.0,2482.5,7.758]
[1747493270549,4.02771258,2482.8,2482.5,7.758]
[1747493271352,0.7702,2483.0,2482.5,7.758]
[1747493271552,4.02786014,2482.8,2482.5,7.758]
[1747493271752,4.02792033,2482.7,2482.2,4.57864922]
[1747493271958,4.02779021,2482.8,2482.6,7.758]
[1747493272283,4.02787288,2482.7,2482.6,7.757]
[1747493272658,4.02777742,2482.8,2482.6,7.757]
[1747493272861,4.02777742,2482.8,2482.2,4.57861488]
[1747493273072,4.02787288,2482.7,2482.4,0.55]
[1747493273567,4.02754843,2482.9,2482.4,0.55]
[1747493273771,4.02781547,2482.8,2482.4,0.55]
[1747493273987,4.02714933,2483.2,2482.8,0.55]
[1747493274179,4.02729755,2483.1,2482.8,8.307]
[1747493274783,4.02740772,2483.0,2482.8,8.307]
[1747493275078,4.02795102,2482.7,2482.6,0.55]
[1747493275244,4.02795102,2482.7,2482.6,8.306]
[1747493276305,4.02795102,2482.7,2482.6,0.55]
[1747493276471,4.0281447,2482.6,2482.3,1.3475]
[1747493276675,4.78831955,2482.9,2482.5,0.55]
[1747493276885,4.02771064,2482.8,2482.5,0.55]
[1747493277080,4.02765163,2482.9,2482.5,0.55]
[1747493279176,4.02771569,2482.8,2482.5,0.55]
[1747493279372,4.02763969,2482.9,2482.5,0.55]
[1747493280095,4.02771992,2482.8,2482.5,0.55]
[1747493280416,11.77640857,2483.0,2482.7,0.55]
[1747493280417,4.02746133,2483.0,2482.7,0.55]
[1747493280584,4.02731837,2483.1,2482.8,0.7568]
[1747493280774,14.1071442,2483.2,2482.9,0.55]
[1747493281536,4.02722863,2483.1,2482.9,0.55]
[1747493281675,4.02738622,2483.0,2482.9,0.55]
[1747493281870,4.0276988,2482.9,2482.7,0.55]
[1747493282069,0.7858,2483.1,2482.6,0.7568]
[1747493282070,4.02771064,2482.8,2482.6,0.7568]
[1747493282273,4.02771064,2482.8,2482.7,7.754]
[1747493282489,4.02787823,2482.7,2482.6,7.754]
[1747493283009,4.0278,2482.8,2482.6,7.754]
[1747493283212,4.02750337,2483.0,2482.7,0.55]
[1747493283422,4.02764553,2482.9,2482.7,0.55]
[1747493284089,4.02748114,2483.0,2482.7,0.55]
[1747493284427,7.747,2483.4,2482.9,0.55]
[1747493284583,4.02719192,2483.2,2482.9,0.55]
[1747493284784,4.02724182,2483.1,2482.9,0.55]
[1747493285181,4.02712298,2483.2,2482.9,0.55]
[1747493285423,4.02693055,2483.3,2482.9,0.55]
[1747493285598,4.02693055,2483.3,2482.9,0.81026153]
[1747493285780,4.02725095,2483.1,2482.9,0.55]
[1747493285985,4.02746811,2483.0,2482.8,0.8194]
[1747493286224,4.02729129,2483.1,2482.9,8.304]
[1747493286422,4.02673753,2483.4,2482.9,8.304]
[1747493286596,4.02738622,2483.0,2482.9,0.55]
[1747493286804,4.02738622,2483.0,2482.9,8.304]
[1747493287120,8.5672,2483.5,2482.6,0.8194]
[1747493287323,4.02746758,2483.0,2482.7,7.754]
[1747493287521,4.02754843,2482.9,2482.8,1.40734]
[1747493287724,4.02754843,2482.9,2482.8,8.304]
[1747493288021,8.5672,2483.5,2482.6,0.8194]
[1747493288022,4.02706185,2483.2,2482.6,0.8194]
[1747493288224,4.02713546,2483.2,2482.7,12.33180123]
[1747493288410,4.02731928,2483.1,2482.9,0.55]
[1747493288588,4.0271413,2483.2,2482.9,0.55]
[1747493289123,4.0271413,2483.2,2483.1,0.55]
[1747493289323,4.02748008,2483.0,2482.9,0.55]
[1747493289625,4.02748008,2483.0,2482.9,8.304]
[1747493289822,4.02783484,2482.8,2482.7,7.753]
[1747493290032,4.02783484,2482.8,2482.7,8.303]
[1747493290210,4.02783484,2482.8,2482.3,0.7933]
[1747493290211,4.02806118,2482.6,2482.3,0.7933]
[1747493290528,4.02806118,2482.6,2482.5,0.55]
[1747493290691,4.02803512,2482.6,2482.5,0.90963]
[1747493290886,4.0279541,2482.7,2482.5,0.90963]
[1747493291086,4.0279541,2482.7,2482.6,0.55]
[1747493292038,0.7974,2483.5,2482.5,1.3433]
[1747493292240,4.02796081,2482.7,2482.6,7.753]
[1747493292536,4.02778267,2482.8,2482.6,7.753]
[1747493292898,8.7974,2483.4,2482.7,0.55]
[1747493293103,4.02732025,2483.1,2482.7,0.55]
[1747493293422,4.02732025,2483.1,2482.7,4.57786534]
[1747493293589,4.02757491,2482.9,2482.7,0.55]
[1747493293785,7.763,2483.3,2482.7,0.55]
[1747493294021,4.02739416,2483.0,2482.7,0.55]
[1747493294208,4.02771064,2482.8,2482.7,1.550593]
[1747493294387,4.02771064,2482.8,2482.7,0.55]
[1747493294589,4.02803512,2482.6,2482.5,1.3433]
[1747493294891,4.02803512,2482.6,2482.5,9.0963]
[1747493295327,4.02794767,2482.7,2482.6,0.55]
[1747493295527,4.02690874,2483.3,2482.6,0.55]
[1747493295694,0.7974,2482.9,2482.3,1.3433]
[1747493295895,0.7974,2482.9,2482.4,9.16757122]
[1747493295896,4.02796572,2482.7,2482.4,9.16757122]
[1747493296303,4.02796572,2482.7,2482.5,0.3798391]
[1747493296858,4.82543512,2482.6,2482.5,0.3798391]
[1747493297326,4.02839079,2482.4,2482.1,7.767]
[1747493297717,4.02868423,2482.2,2482.1,7.767]
[1747493297923,4.02836841,2482.4,2482.2,0.55]
[1747493298090,4.02852193,2482.3,2482.2,0.55]
[1747493298500,4.02868423,2482.2,2482.1,7.767]
[1747493299437,4.02900886,2482.0,2481.9,25.172]
[1747493299942,4.02900886,2482.0,2481.9,17.404]
[1747493300146,4.02906895,2482.0,2481.6,0.7933]
[1747493300465,4.02907576,2482.0,2481.7,7.768]
[1747493300744,4.02878734,2482.2,2481.8,0.55]
[1747493300948,4.02886451,2482.1,2481.8,0.55]
[1747493301714,4.02886451,2482.1,2481.9,0.38043367]
[1747493301915,4.82640886,2482.0,2481.9,0.38043367]
[1747493302348,4.02900886,2482.0,2481.9,0.38043367]
[1747493303026,12.79950886,2482.0,2481.9,0.38043367]
[1747493303224,0.7705,2481.5,2481.0,0.47386152]
[1747493303437,4.03047035,2481.1,2481.0,0.47386152]
[1747493304621,4.02983542,2481.5,2481.1,0.55]
[1747493304816,8.7705,2482.0,2481.3,0.55]
[1747493305023,4.02963506,2481.7,2481.3,0.55]
[1747493305303,4.02973133,2481.6,2481.3,0.55]
[1747493305512,4.029249,2481.9,2481.5,0.55]
[1747493305738,4.02909909,2482.0,2481.6,1.31046033]
[1747493305940,4.02918952,2481.9,2481.6,1.31046033]
[1747493306140,4.02937287,2481.8,2481.7,7.769]
[1747493306645,4.02904146,2482.0,2481.7,7.769]
[1747493306850,4.02926107,2481.9,2481.7,7.769]
[1747493308916,4.02933354,2481.8,2481.7,7.769]
[1747493309122,4.02924734,2481.9,2481.8,0.7638]
[1747493309429,4.02930088,2481.9,2481.7,7.769]
[1747493309629,4.02935862,2481.8,2481.5,1.3138]
[1747493309855,4.0292585,2481.9,2481.6,7.77]
[1747493310254,7.839,2482.5,2481.7,1.3138]
[1747493310559,4.02897628,2482.1,2481.7,1.3138]
[1747493310718,4.02909707,2482.0,2481.9,0.55]
[1747493311050,4.02906895,2482.0,2481.8,8.32]
[1747493311256,4.02900886,2482.0,2481.9,7.77]
[1747493312359,4.02928961,2481.9,2481.8,7.77]
[1747493315066,4.02965828,2481.6,2481.5,0.55]
[1747493315460,4.02965828,2481.6,2481.5,8.32]
[1747493316188,4.02965828,2481.6,2481.5,7.77]
[1747493316338,4.02982067,2481.5,2481.4,17.398]
[1747493316540,4.02982067,2481.5,2481.0,0.96191483]
[1747493316740,4.03079527,2480.9,2480.8,8.24386152]
[1747493317950,10.08,2481.5,2480.8,8.79386152]
[1747493318163,8.0,2481.9,2480.8,8.79386152]
[1747493318164,4.02965828,2481.6,2481.1,0.55]
[1747493318370,4.02982067,2481.5,2481.1,0.55]
[1747493318964,4.02958592,2481.7,2481.3,0.55]
[1747493319166,4.02958592,2481.7,2481.5,0.55]
[1747493319889,4.02925944,2481.9,2481.5,0.55]
[1747493320475,4.0290161,2482.0,2481.5,0.55]
[1747493320777,8.6628,2482.2,2481.6,0.55]
[1747493320778,4.02958248,2481.7,2481.6,0.55]
[1747493321079,4.02958248,2481.7,2481.6,8.321]
[1747493321983,7.845,2482.1,2481.7,0.55]
[1747493322181,4.02933354,2481.8,2481.7,0.55]
[1747493322554,4.02924594,2481.9,2481.7,0.55]
[1747493322759,4.02933354,2481.8,2481.7,0.55]
[1747493322955,4.02949591,2481.7,2481.6,7.771]
[1747493323155,12.69049937,2482.2,2481.2,0.8249]
[1747493323342,12.69049937,2482.2,2481.3,7.77]
[1747493323343,4.02993064,2481.5,2481.3,7.77]
[1747493323969,4.02993064,2481.5,2481.4,7.77]
[1747493323970,4.02982067,2481.5,2481.4,7.77]
[1747493324144,4.03014548,2481.3,2481.1,7.77]
[1747493324348,12.69539834,2481.7,2481.1,7.77]
[1747493324349,4.03030791,2481.2,2481.1,7.77]
[1747493324586,8.6658,2481.7,2481.1,7.77]
[1747493324587,4.03022151,2481.3,2481.1,7.77]
[1747493324786,8.6658,2481.7,2481.1,7.77]
[1747493324787,4.02971129,2481.6,2481.1,8.67687615]
[1747493324981,4.02998151,2481.5,2481.1,8.67687615]
[1747493325184,4.02998307,2481.4,2481.1,8.67687615]
[1747493325385,4.02989417,2481.5,2481.1,8.67687615]
[1747493325694,4.02996301,2481.5,2481.2,1.90323629]
[1747493326488,4.02975306,2481.6,2481.3,0.7828]
[1747493326650,7.84,2481.7,2481.4,0.55]
[1747493326851,4.02982067,2481.5,2481.4,0.55]
[1747493327682,4.03018507,2481.3,2481.1,9.45967615]
[1747493328599,4.03018507,2481.3,2481.2,0.38078696]
[1747493328951,4.02968911,2481.6,2481.2,0.38078696]
[1747493329155,4.02965828,2481.6,2481.2,0.38078696]
[1747493329452,4.02965828,2481.6,2481.2,2.09949366]
[1747493330094,4.02965828,2481.6,2481.3,7.833]
[1747493330291,4.02961437,2481.7,2481.4,0.59030024]
[1747493330451,4.02967802,2481.6,2481.4,1.60227939]
[1747493331292,4.02967802,2481.6,2481.1,1.68967615]
[1747493331293,4.02982067,2481.5,2481.1,1.68967615]
[1747493331489,4.03011258,2481.4,2481.2,8.383]
[1747493331993,4.03014548,2481.3,2481.2,7.833]
[1747493333072,4.03014548,2481.3,2481.2,8.21302144]
[1747493333598,4.03014548,2481.3,2481.2,0.38002144]
[1747493334461,4.03014548,2481.3,2481.1,7.833]
[1747493334662,4.03014548,2481.3,2481.1,9.06631502]
[1747493335059,4.03030791,2481.2,2481.1,9.61631502]
[1747493335312,4.03030791,2481.2,2481.1,9.06631502]
[1747493335464,4.03030791,2481.2,2481.1,7.833]
[1747493335662,4.03001699,2481.4,2481.1,7.833]
[1747493335663,4.03020795,2481.3,2481.1,8.21305578]
[1747493335870,4.03030791,2481.2,2481.1,8.21305578]
[1747493336072,4.03026873,2481.3,2481.1,8.21305578]
[1747493336312,4.03030791,2481.2,2481.1,8.21305578]
[1747493336675,4.03029756,2481.3,2481.1,8.76305578]
[1747493336871,4.03030791,2481.2,2481.1,8.76305578]
[1747493337106,4.03030791,2481.2,2481.1,8.383]
[1747493338243,4.81135775,2480.8,2480.7,0.47386152]
[1747493338886,4.03128275,2480.6,2480.5,0.47386152]
[1747493340173,11.87028275,2480.6,2480.5,0.47386152]
[1747493341419,4.03128275,2480.6,2480.5,0.47386152]
[1747493341708,11.86428275,2480.6,2480.5,0.47386152]
[1747493342211,11.86428275,2480.6,2480.2,0.55]
[1747493342212,4.03180691,2480.3,2480.2,0.55]
[1747493342411,4.03153562,2480.5,2479.9,7.833]
[1747493342412,4.03196372,2480.2,2479.9,7.833]
[1747493342588,7.833,2480.6,2479.9,7.833]
[1747493342918,4.03250233,2479.9,2479.6,8.30786152]
[1747493343098,4.03250233,2479.9,2479.7,0.55]
[1747493343412,4.03274589,2479.7,2479.6,0.47386152]
[1747493343915,4.03227603,2480.0,2479.7,0.55]
[1747493344092,7.834,2480.1,2479.7,1.13457004]
[1747493344294,4.03218465,2480.1,2479.7,1.13457004]
[1747493344717,4.03226313,2480.0,2479.7,1.13457004]
[1747493345014,4.03226313,2480.0,2479.6,0.47386152]
[1747493345015,4.03253277,2479.9,2479.6,0.47386152]
[1747493345316,4.03242868,2479.9,2479.5,0.7888]
[1747493345706,4.03242868,2479.9,2479.6,0.55]
[1747493347008,4.03274589,2479.7,2479.6,0.55]
[1747493347181,4.03274589,2479.7,2479.5,0.7888]
[1747493347182,4.0328814,2479.7,2479.5,0.7888]
[1747493347381,4.0328814,2479.7,2479.5,0.55]
[1747493348085,4.0328814,2479.7,2479.4,0.55]
[1747493348718,4.03282213,2479.7,2479.4,0.55]
[1747493350419,4.03230682,2480.0,2479.4,1.86956838]
[1747493350596,11.85049853,2479.9,2479.4,5.90276648]
[1747493351297,11.8504463,2479.9,2479.4,1.86956838]
[1747493351798,4.03268917,2479.8,2479.4,0.55]
[1747493352325,4.03292726,2479.6,2479.4,0.55]
[1747493352623,4.03307118,2479.5,2479.4,0.55]
[1747493352803,4.0326291,2479.8,2479.4,0.55]
[1747493352990,4.03284507,2479.7,2479.4,0.55]
[1747493354031,4.03232059,2480.0,2479.5,0.04032939]
[1747493354230,4.03211087,2480.1,2479.8,0.55]
[1747493354723,4.03211087,2480.1,2479.7,0.55]
[1747493355248,4.03200556,2480.2,2479.7,4.58273522]
[1747493355409,4.03201521,2480.2,2480.0,0.7762]
[1747493356125,8.7856,2480.5,2480.0,0.7762]
[1747493356291,12.81713626,2480.5,2479.9,0.55]
[1747493356496,4.03225806,2480.0,2479.5,4.80925318]
[1747493356697,4.03248644,2479.9,2479.6,0.55]
[1747493357100,4.03258785,2479.8,2479.6,0.55]
[1747493357295,4.03246409,2479.9,2479.6,0.55]
[1747493357496,4.03274589,2479.7,2479.6,0.55]
[1747493357700,12.64175288,2480.1,2479.6,0.55]
[1747493358129,4.03225806,2480.0,2479.6,0.55]
[1747493358297,4.03244385,2479.9,2479.6,0.55]
[1747493360735,7.815,2480.2,2479.6,0.55]
[1747493360736,4.03235893,2480.0,2479.6,0.55]
[1747493360920,4.84869571,2480.4,2479.9,4.03234665]
[1747493361098,4.84869571,2480.4,2479.8,4.58247788]
[1747493361099,12.65969571,2480.4,2479.8,4.58247788]
[1747493361307,4.03177035,2480.3,2479.8,0.55]
[1747493361523,4.03177035,2480.3,2479.8,1.6256532]
[1747493361803,4.03194189,2480.2,2479.8,5.65819946]
[1747493365516,4.03194189,2480.2,2479.8,1.6256532]
[1747493365718,4.03209548,2480.1,2479.8,0.55]
[1747493367047,4.03202526,2480.2,2479.8,0.55]
[1747493368642,4.03202526,2480.2,2480.0,0.55]
[1747493371252,4.03202526,2480.2,2479.9,0.55]
[1747493372173,14.11159384,2480.5,2480.1,0.55]
[1747493373239,4.03162833,2480.4,2480.1,0.55]
[1747493373444,4.03181102,2480.3,2480.1,0.55]
[1747493374842,4.0319329,2480.2,2480.1,8.368]
[1747493375080,4.03186275,2480.3,2480.1,8.368]
[1747493375374,4.0318787,2480.3,2480.1,8.368]
[1747493375525,4.0319329,2480.2,2480.1,8.368]
[1747493375727,4.0319329,2480.2,2480.1,7.818]
[1747493376665,4.03184347,2480.3,2480.1,7.818]
[1747493377762,4.0319329,2480.2,2480.0,0.55]
[1747493378062,8.542,2480.8,2480.0,1.92813822]
[1747493378063,11.79330143,2480.6,2480.0,1.92813822]
[1747493378228,4.03183768,2480.3,2480.0,0.55]
[1747493378830,4.03183768,2480.3,2480.1,0.38125913]
[1747493379046,4.0319329,2480.2,2480.1,0.38125913]
[1747493380279,4.03185201,2480.3,2480.1,0.38125913]
[1747493380433,4.03185201,2480.3,2479.9,0.55]
[1747493380634,4.03168794,2480.4,2480.1,0.55]
[1747493382338,4.82426094,2480.8,2480.1,0.55]
[1747493382339,0.7933,2480.8,2480.1,0.55]
[1747493382542,18.08,2480.9,2480.5,0.55]
[1747493382543,14.1109432,2480.9,2480.5,0.55]
[1747493382889,4.03099419,2480.8,2480.5,0.55]
[1747493383040,4.03099419,2480.8,2480.6,0.38148035]
[1747493383568,4.03112024,2480.7,2480.6,0.38148035]
[1747493383778,24.6724029,2480.7,2480.6,0.38148035]
[1747493383947,25.33354594,2480.7,2480.6,0.38148035]
[1747493384659,14.90442024,2480.7,2480.6,0.38148035]
[1747493384978,4.03177035,2480.3,2480.2,0.47670066]
[1747493385139,11.80277035,2480.3,2480.2,0.47670066]
[1747493386778,4.03209548,2480.1,2479.9,0.38187973]
[1747493387079,4.03225806,2480.0,2479.9,0.93187973]
[1747493387574,4.03216697,2480.1,2479.9,0.93187973]
[1747493388380,4.03203393,2480.2,2480.0,0.55]
[1747493388592,4.03203393,2480.2,2479.9,0.55]
[1747493388891,4.03211591,2480.1,2479.9,0.55]
[1747493389093,4.03225806,2480.0,2479.9,0.55]
[1747493389292,4.03225806,2480.0,2479.7,0.55]
[1747493389293,4.0325797,2479.9,2479.7,0.55]
[1747493389590,4.03268012,2479.8,2479.6,8.5226]
[1747493389889,4.03268012,2479.8,2479.6,7.763]
[1747493390194,4.03268012,2479.8,2479.7,0.55]
[1747493391100,4.03268012,2479.8,2479.7,0.93175321]
[1747493391395,4.03268012,2479.8,2479.7,0.38175321]
[1747493391594,4.0324904,2479.9,2479.7,0.38175321]
[1747493391891,4.03225223,2480.1,2479.8,1.3096]
[1747493392292,11.79508496,2480.2,2479.8,1.88202453]
[1747493392492,4.03190122,2480.3,2479.8,1.88202453]
[1747493392699,4.03194579,2480.2,2479.8,1.88202453]
[1747493393690,4.03210266,2480.1,2479.8,1.88202453]
[1747493394094,4.03184753,2480.3,2480.0,0.55]
[1747493394299,4.0319464,2480.2,2480.0,0.55]
[1747493394720,4.03184276,2480.3,2480.0,0.55]
[1747493394901,0.7741,2480.6,2480.0,1.95591859]
[1747493395106,10.08,2480.7,2480.2,0.55]
[1747493395107,4.03157827,2480.5,2480.2,0.55]
[1747493395294,17.843,2480.7,2480.2,0.55]
[1747493395482,4.03155029,2480.5,2480.2,0.55]
[1747493397086,4.031361,2480.6,2480.2,0.55]
[1747493397415,4.03145196,2480.5,2480.2,0.55]
[1747493397601,4.03136635,2480.6,2480.2,0.55]
[1747493397789,4.03162032,2480.4,2480.2,0.55]
[1747493397986,4.03152978,2480.5,2480.2,0.55]
[1747493398191,21.87424637,2480.7,2480.2,4.5819122]
[1747493398590,4.60362077,2481.0,2480.2,1.21404594]
[1747493398792,4.60362077,2481.0,2480.6,0.55]
[1747493398793,3.77572077,2481.0,2480.6,0.55]
[1747493399000,7.80646975,2481.0,2480.6,0.55]
[1747493399203,3.77572077,2481.0,2480.6,0.55]
[1747493399389,7.80648572,2481.0,2480.6,0.55]
[1747493399605,4.03080978,2480.9,2480.6,0.55]
[1747493399795,4.03080978,2480.9,2480.7,0.38101423]
[1747493402118,4.03080978,2480.9,2480.6,0.55]
[1747493404485,4.0316078,2480.4,2480.3,8.5307]
[1747493404820,4.03153661,2480.5,2480.3,7.763]
[1747493404997,4.03153661,2480.5,2480.3,8.14384462]
[1747493405586,4.0316078,2480.4,2480.3,8.14384462]
[1747493405906,4.03132203,2480.6,2480.3,8.14384462]
[1747493406220,4.03121257,2480.7,2480.2,4.5819258]
[1747493406419,14.9023175,2481.2,2480.6,4.58121286]
[1747493406621,7.80643419,2481.0,2480.6,8.311]
[1747493406986,4.03001104,2481.4,2480.7,0.0403086]
[1747493406987,0.792,2481.4,2480.7,0.0403086]
[1747493407187,0.792,2481.6,2480.9,5.34845246]
[1747493407387,0.792,2481.6,2481.0,0.55]
[1747493407388,4.03000512,2481.4,2481.0,0.55]
[1747493407629,4.02989922,2481.5,2481.0,4.58061994]
[1747493408237,4.0296692,2481.6,2481.1,4.0304599]
[1747493408238,11.7906692,2481.6,2481.1,4.0304599]
[1747493408394,11.7906692,2481.6,2481.2,0.55]
[1747493408588,4.0296692,2481.6,2481.2,0.55]
[1747493409104,4.02983873,2481.5,2481.2,0.55]
[1747493409632,4.02974886,2481.6,2481.2,0.55]
[1747493409833,4.02985747,2481.5,2481.1,0.55]
[1747493409990,4.02985747,2481.5,2481.2,7.761]
[1747493410924,4.03014548,2481.3,2481.1,1.03550001]
[1747493411096,4.03042215,2481.2,2480.9,8.5287]
[1747493411297,4.03018251,2481.3,2480.9,8.5287]
[1747493412219,4.03007011,2481.4,2481.0,0.55]
[1747493412394,7.76,2481.5,2481.2,0.55]
[1747493412590,4.02998352,2481.4,2481.2,0.55]
[1747493412796,4.03014548,2481.3,2481.2,0.55]
[1747493413196,4.03005429,2481.4,2481.2,0.55]
[1747493414937,11.78869366,2481.6,2480.9,0.7677]
[1747493415231,4.03030791,2481.2,2481.1,7.76]
[1747493416629,4.02982067,2481.5,2481.0,7.76]
[1747493416834,4.03071562,2481.0,2480.8,7.76]
[1747493417134,4.03081403,2480.9,2480.8,7.76]
[1747493418833,4.03070327,2481.0,2480.8,7.76]
[1747493419929,12.57613383,2481.1,2480.8,8.536]
[1747493419930,4.03056293,2481.1,2480.8,8.536]
[1747493420137,7.759,2481.3,2480.9,1.303]
[1747493420432,4.03047123,2481.1,2480.9,1.303]
[1747493422337,4.03047035,2481.1,2480.9,1.303]
[1747493423201,4.0306328,2481.0,2480.9,1.303]
[1747493423828,4.0303251,2481.2,2480.9,1.303]
[1747493424437,4.0305489,2481.1,2480.9,1.303]
[1747493424930,4.0305489,2481.1,2480.9,0.55]
[1747493425124,4.0306328,2481.0,2480.9,0.55]
[1747493426317,4.0306328,2481.0,2480.8,7.76]
[1747493426318,4.0306328,2481.0,2480.8,0.55]
[1747493426539,4.0306328,2481.0,2480.8,8.309]
[1747493427821,4.03079527,2480.9,2480.8,8.309]
[1747493428016,4.03070715,2481.0,2480.8,9.22275]
[1747493428742,4.0305051,2481.1,2480.8,9.22275]
[1747493429043,4.03071187,2481.0,2480.8,9.22275]
[1747493429450,4.03079527,2480.9,2480.8,9.22275]